bitfinex/quotes_ETHUSD_20220309
["timestamp","ask_amount","ask_price","bid_price","bid_amount"]
[1646839262800,0.8887417,2738.9,2738.7,1.15257344]
[1646839262801,0.5887417,2738.8,2738.7,1.15257344]
[1646839263001,0.5887417,2738.8,2738.7,2.06629585]
[1646839263249,0.5887417,2738.8,2738.4,0.08539424]
[1646839263450,0.5887417,2738.8,2738.5,0.91319262]
[1646839264050,0.05418445,2738.7,2738.5,0.91319262]
[1646839264249,0.38335245,2738.7,2738.5,0.91319262]
[1646839264448,0.38335245,2738.7,2737.9,0.0015443]
[1646839264449,0.71108621,2738.2,2737.9,0.0015443]
[1646839264648,0.31390723,2738.1,2737.6,0.0015443]
[1646839264850,0.31390723,2738.1,2737.5,0.01516296]
[1646839264851,0.34544022,2738.0,2737.5,0.01516296]
[1646839265053,0.029168,2737.8,2737.2,0.67244619]
[1646839265250,0.029168,2737.8,2737.0,0.0015443]
[1646839265251,5.09905046,2737.8,2737.0,0.0015443]
[1646839265448,5.09905046,2737.8,2736.5,0.89350026]
[1646839265449,5.09905046,2737.8,2736.8,0.67090189]
[1646839265450,0.05265121,2737.6,2736.8,0.67090189]
[1646839265647,0.91396,2737.4,2736.8,0.028001]
[1646839265848,0.04969438,2737.3,2736.7,0.67090189]
[1646839266052,0.04969438,2737.3,2736.6,0.69890289]
[1646839266053,1.41419438,2737.3,2736.6,0.69890289]
[1646839266249,1.41419438,2737.3,2736.6,0.67090189]
[1646839266250,0.05362528,2737.2,2736.6,0.67090189]
[1646839266448,0.05362528,2737.2,2736.7,0.67090189]
[1646839266648,0.91399,2737.1,2736.7,0.67090189]
[1646839266901,1.21399,2737.1,2736.6,0.69897789]
[1646839267310,0.3,2737.1,2736.7,0.0770625]
[1646839267507,0.3,2737.2,2736.8,0.028118]
[1646839267708,0.3,2737.3,2736.8,1.26259992]
[1646839267910,0.3,2737.5,2737.3,0.91534319]
[1646839268311,0.029168,2737.8,2737.3,0.91534319]
[1646839268511,0.20766254,2737.9,2737.4,0.0739934]
[1646839268512,0.3,2737.9,2737.4,0.0739934]
[1646839268912,0.446317,2737.9,2737.4,0.0739934]
[1646839269107,1.2137,2738.0,2737.4,0.0739934]
[1646839269311,0.30399089,2738.0,2737.8,1.00908321]
[1646839269511,0.30399089,2738.0,2737.4,3.57798515]
[1646839269512,0.30399089,2738.0,2737.4,0.00399175]
[1646839269711,0.00399089,2738.0,2737.4,0.00399175]
[1646839270210,0.31390723,2738.1,2737.6,0.028195]
[1646839270411,0.00399098,2738.0,2737.6,0.028195]
[1646839270646,0.00399098,2738.0,2737.6,0.93839159]
[1646839271252,0.31390723,2738.1,2737.7,0.08266559]
[1646839271646,0.00399104,2738.0,2737.7,0.08266559]
[1646839272247,0.30399104,2738.0,2737.7,0.08266559]
[1646839272447,0.3,2738.0,2737.7,0.08266559]
[1646839272849,0.30386914,2738.0,2737.7,0.08266559]
[1646839273649,0.3,2738.0,2737.7,0.08266559]
[1646839273850,0.3,2738.0,2737.6,0.93839159]
[1646839274049,0.30386914,2738.0,2737.6,0.028195]
[1646839274504,1.21752914,2738.0,2737.6,0.028195]
[1646839274905,1.21366,2738.0,2737.5,0.028001]
[1646839275103,1.21366,2738.0,2737.5,0.028095]
[1646839275304,1.21752916,2738.0,2737.5,0.028095]
[1646839276104,1.21366,2738.0,2737.5,0.028095]
[1646839276507,1.21739873,2738.0,2737.5,0.028095]
[1646839277307,1.21366,2738.0,2737.5,0.028095]
[1646839277506,1.21739873,2738.0,2737.5,0.028014]
[1646839278244,1.21739873,2738.0,2737.6,0.028237]
[1646839278545,1.21739873,2738.0,2737.7,0.88890226]
[1646839278546,0.3,2738.0,2737.7,0.88890226]
[1646839278746,0.30373873,2738.0,2737.8,0.11002861]
[1646839279749,0.31390723,2738.1,2737.9,0.028296]
[1646839279949,0.31390723,2738.1,2738.0,0.057605]
[1646839280949,0.31390723,2738.1,2738.0,0.1469205]
[1646839281348,0.71108621,2738.2,2738.1,6.0]
[1646839281349,0.00374746,2738.2,2738.1,6.0]
[1646839281550,0.00374746,2738.2,2738.1,6.029168]
[1646839281753,0.00374746,2738.2,2738.1,9.529168]
[1646839282224,1.2039,2739.1,2738.1,9.529168]
[1646839282422,1.2039,2739.1,2738.6,0.028459]
[1646839282623,1.2039,2739.1,2738.9,1.10517331]
[1646839282821,0.014001,2739.4,2738.9,1.10517331]
[1646839283022,0.014001,2739.4,2738.9,1.13318931]
[1646839283622,0.00156531,2739.3,2738.9,1.13318931]
[1646839283824,0.00156531,2739.3,2739.0,0.028249]
[1646839284427,0.314001,2739.4,2738.9,1.13318931]
[1646839284623,0.58087423,2739.3,2738.9,0.25822258]
[1646839284825,0.58243954,2739.3,2738.9,0.25822258]
[1646839285128,0.58243954,2739.3,2739.0,0.028364]
[1646839285329,0.00156531,2739.3,2739.1,0.028289]
[1646839285530,0.00156531,2739.3,2739.2,0.028459]
[1646839287059,0.56416033,2740.0,2739.2,0.028459]
[1646839287257,0.56416033,2740.0,2739.7,1.19981826]
[1646839287758,0.56416033,2739.9,2739.7,1.19981826]
[1646839287959,0.56416033,2739.8,2739.6,0.09784288]
[1646839288159,0.56416033,2739.7,2739.5,0.028001]
[1646839288359,0.56416033,2739.6,2739.4,0.028459]
[1646839288560,0.00384345,2740.0,2739.3,0.11177035]
[1646839288760,0.00384345,2740.0,2739.4,0.028319]
[1646839288958,0.00384345,2740.0,2739.5,0.028257]
[1646839289403,0.91296,2740.0,2739.5,0.11878724]
[1646839289607,0.00384358,2739.8,2739.5,0.11878724]
[1646839290003,0.00384358,2739.8,2739.5,0.09053024]
[1646839290207,0.56800391,2739.8,2739.5,0.09053024]
[1646839290612,0.56416033,2739.8,2739.5,0.11863324]
[1646839290812,0.56416033,2739.7,2739.6,0.028234]
[1646839291011,0.56416033,2739.7,2739.5,0.11863324]
[1646839291210,0.56416033,2739.6,2739.5,0.11863324]
[1646839291414,0.00399178,2739.8,2739.5,0.09053024]
[1646839291613,0.00399178,2739.8,2739.4,0.056002]
[1646839291814,0.56435294,2739.8,2739.6,0.028459]
[1646839292013,2.184901,2740.2,2739.6,0.028459]
[1646839292014,0.56821508,2739.7,2739.6,0.028459]
[1646839292220,0.56821508,2739.7,2738.9,0.08399296]
[1646839292415,0.00386214,2739.7,2739.3,0.028001]
[1646839292615,0.00386214,2739.7,2739.3,1.88185]
[1646839292815,0.00386214,2739.7,2739.5,0.06934281]
[1646839293015,0.146209,2739.8,2739.5,0.06934281]
[1646839293248,0.00386219,2739.6,2739.5,0.09741281]
[1646839294046,0.56419756,2740.1,2739.5,0.09741281]
[1646839294248,0.56419756,2740.1,2739.5,0.12636981]
[1646839294446,0.00386214,2739.7,2739.5,0.09754581]
[1646839294855,0.00386214,2739.7,2739.5,0.06934281]
[1646839295353,0.56419756,2740.1,2739.5,0.06934281]
[1646839295551,0.00375407,2739.7,2739.5,0.06934281]
[1646839296553,0.56419756,2740.1,2739.5,0.06527763]
[1646839297002,0.00375407,2739.7,2739.5,0.06527763]
[1646839297802,0.56419756,2740.1,2739.9,1.13238547]
[1646839298202,0.56419756,2740.0,2739.9,1.13238547]
[1646839298603,0.56419756,2740.3,2739.9,1.13238547]
[1646839298804,0.56419756,2740.2,2739.9,1.13238547]
[1646839299004,0.56419756,2740.1,2739.5,0.06527763]
[1646839299204,0.56419756,2740.0,2739.3,0.11310766]
[1646839300302,0.56419756,2740.0,2739.6,0.028459]
[1646839300504,0.00374744,2739.8,2739.4,0.028281]
[1646839300751,0.00374744,2739.8,2739.5,0.96689514]
[1646839300752,0.567945,2739.8,2739.5,0.96689514]
[1646839300952,0.567945,2739.8,2739.6,0.09041112]
[1646839300953,0.56419756,2739.7,2739.6,0.09041112]
[1646839301552,0.56419756,2739.7,2739.4,0.028001]
[1646839301753,0.00374744,2739.8,2739.3,0.028001]
[1646839301956,0.00374744,2739.8,2739.0,0.10706695]
[1646839302155,0.56754942,2739.8,2738.8,0.11552132]
[1646839302454,0.56380198,2739.7,2738.9,0.028159]
[1646839302659,0.56380198,2739.6,2738.9,0.028159]
[1646839302857,0.3645,2740.0,2739.1,0.91277513]
[1646839303056,0.00374809,2739.5,2739.2,0.06959551]
[1646839303258,0.00374809,2739.5,2739.4,0.028353]
[1646839303461,0.00374809,2739.5,2739.3,0.028001]
[1646839303860,0.00374809,2739.5,2739.4,0.029168]
[1646839304060,2.1383,2740.3,2739.4,0.029168]
[1646839304258,2.1383,2740.3,2739.8,0.95168962]
[1646839304259,0.56366517,2740.2,2739.8,0.95168962]
[1646839304502,0.56366517,2740.2,2739.8,0.21180043]
[1646839304702,0.56366517,2740.1,2739.8,0.21180043]
[1646839304904,0.56366517,2740.0,2739.8,0.21180043]
[1646839305102,0.56366517,2739.9,2739.6,0.028449]
[1646839305408,1.34541902,2740.5,2739.6,0.02809]
[1646839305409,0.54992388,2739.8,2739.6,0.02809]
[1646839305602,0.00356888,2740.1,2739.5,0.028001]
[1646839306104,0.54991546,2740.4,2739.7,0.86494418]
[1646839306302,0.54991546,2740.4,2739.8,0.08164516]
[1646839306505,0.00356902,2739.9,2739.8,0.08164516]
[1646839306710,0.00356902,2739.9,2739.7,0.86494418]
[1646839307109,0.00356902,2739.9,2739.6,0.3]
[1646839307310,0.54991546,2740.2,2739.3,0.0699751]
[1646839307711,0.00356902,2739.9,2739.3,0.0699751]
[1646839308158,0.00356902,2739.9,2739.4,1.00685028]
[1646839308550,0.54991546,2740.0,2739.4,1.00685028]
[1646839308752,0.54991546,2739.9,2739.4,1.00685028]
[1646839308953,0.00374589,2739.7,2739.4,1.00685028]
[1646839309554,0.00374589,2739.7,2739.5,0.08504381]
[1646839309756,2.6645,2740.5,2739.9,1.11365003]
[1646839309956,0.54440533,2740.4,2739.9,1.11365003]
[1646839311154,0.54440533,2740.4,2739.5,0.08504381]
[1646839311355,0.00375148,2740.3,2739.5,0.08504381]
[1646839312209,0.54440533,2740.4,2739.6,0.98819768]
[1646839312406,0.00375369,2740.0,2739.6,0.98819768]
[1646839313408,0.54440533,2740.2,2739.5,0.08504381]
[1646839313707,0.00375438,2739.9,2739.3,0.07435652]
[1646839314107,0.54815971,2739.9,2739.0,0.3]
[1646839314307,0.54815971,2739.9,2738.9,0.38457904]
[1646839314707,0.54815971,2739.9,2739.2,1.14718548]
[1646839314907,0.00375454,2739.7,2739.2,1.14718548]
[1646839315107,0.54815987,2739.7,2739.2,1.14718548]
[1646839315317,0.54440533,2739.6,2739.2,1.14718548]
[1646839315514,0.54440533,2739.5,2739.2,1.14718548]
[1646839315778,0.146215,2739.8,2738.9,0.11258004]
[1646839315964,0.54547492,2739.7,2739.0,0.94784056]
[1646839316165,0.91294,2740.0,2738.9,0.11258004]
[1646839316166,0.00357944,2739.5,2738.9,0.11258004]
[1646839316365,0.00357944,2739.5,2739.0,0.97601382]
[1646839316569,0.00357944,2739.5,2738.9,0.08457904]
[1646839316774,0.00357944,2739.5,2739.1,1.14214708]
[1646839316971,0.54547492,2739.6,2739.1,1.14214708]
[1646839317372,0.0035792,2739.4,2739.1,1.17026108]
[1646839318173,0.96631577,2740.0,2739.2,0.028282]
[1646839318174,0.54547492,2739.5,2739.2,0.028282]
[1646839318377,1.0,2740.1,2739.4,0.028585]
[1646839318573,1.0,2740.1,2739.3,0.028001]
[1646839318574,0.0035792,2739.4,2739.3,0.028001]
[1646839318772,0.0035792,2739.4,2739.3,0.057169]
[1646839318974,0.0035792,2739.4,2739.3,0.13007835]
[1646839319275,0.0035792,2739.4,2739.3,1.07762319]
[1646839319504,0.69193961,2739.7,2739.3,1.00471384]
[1646839319704,1.1752,2740.2,2739.5,0.028272]
[1646839319904,0.546026,2740.1,2739.7,0.02826]
[1646839320914,0.00375991,2740.0,2739.7,0.95343663]
[1646839321315,0.54978591,2740.0,2739.7,0.95343663]
[1646839321513,0.546026,2739.9,2739.7,0.95343663]
[1646839321712,0.00375991,2740.0,2739.7,0.95343663]
[1646839321713,0.546026,2739.8,2739.7,0.95343663]
[1646839322113,0.71991124,2740.4,2739.7,0.95343663]
[1646839322114,0.00375995,2740.0,2739.7,0.95343663]
[1646839323151,1.22286917,2740.3,2739.7,0.95343663]
[1646839323152,0.546026,2740.2,2739.7,0.95343663]
[1646839323352,0.00375995,2740.0,2739.7,0.95343663]
[1646839323753,0.00375995,2740.0,2739.5,0.028272]
[1646839323954,0.00375995,2740.0,2739.3,0.10232236]
[1646839324153,0.00375995,2740.0,2739.6,0.97848795]
[1646839324353,0.67684317,2740.1,2739.6,0.95010995]
[1646839324555,0.0037535,2739.9,2739.6,0.95010995]
[1646839324760,0.0037535,2739.9,2739.5,0.95010995]
[1646839324960,0.5497795,2739.9,2739.4,0.51678612]
[1646839325159,0.05393017,2739.8,2739.5,0.96464124]
[1646839325358,0.546026,2739.7,2739.5,0.96464124]
[1646839325557,0.05393017,2739.8,2739.5,0.96464124]
[1646839325558,0.546026,2739.6,2739.5,0.96464124]
[1646839326358,0.0592815,2739.5,2739.1,2.409001]
[1646839326559,0.546026,2739.4,2739.2,0.96504238]
[1646839326760,0.546026,2739.3,2738.9,0.028001]
[1646839327012,0.546026,2739.2,2739.0,0.96551407]
[1646839327216,0.546026,2739.2,2738.7,1.72477819]
[1646839327217,0.546026,2739.1,2738.7,1.0818773]
[1646839327412,0.00375366,2739.7,2738.8,0.96573099]
[1646839327413,0.60916498,2739.0,2738.8,0.96573099]
[1646839327614,0.60916498,2739.0,2738.1,3.13558659]
[1646839327615,4.10202255,2738.9,2738.1,3.13558659]
[1646839327814,4.10202255,2738.9,2738.2,0.96619643]
[1646839327815,1.21345,2738.7,2738.2,0.96619643]
[1646839328012,0.60178058,2738.6,2738.2,0.96619643]
[1646839328211,0.59758344,2738.5,2738.2,0.96619643]
[1646839328410,0.60594129,2738.4,2738.3,0.96619643]
[1646839329211,0.60594129,2738.4,2738.0,0.96619643]
[1646839329412,4.046026,2738.3,2738.1,0.96619643]
[1646839329615,4.046026,2738.3,2737.4,9.52762431]
[1646839329616,0.05470759,2738.1,2737.6,0.0015443]
[1646839329813,0.05470759,2738.1,2737.5,0.96626271]
[1646839329814,0.546026,2738.0,2737.5,0.96626271]
[1646839330013,0.05470759,2738.1,2737.6,0.93055329]
[1646839330014,0.06506595,2737.8,2737.6,0.93055329]
[1646839330213,0.06506595,2737.8,2737.7,0.96626271]
[1646839330414,1.0,2738.2,2737.7,0.96626271]
[1646839330415,0.05107624,2738.1,2737.7,0.96626271]
[1646839330657,0.53629005,2738.0,2737.7,0.96626271]
[1646839330859,0.061314,2737.9,2737.7,0.96626271]
[1646839331258,0.14785294,2738.0,2737.7,0.96626271]
[1646839331470,0.53552015,2737.9,2737.7,0.96626271]
[1646839331763,0.0633413,2738.0,2737.7,0.96626271]
[1646839331970,0.0633413,2738.0,2737.7,0.99436871]
[1646839332161,0.0633413,2738.0,2737.9,0.028235]
[1646839332162,0.00398107,2738.0,2737.9,0.028235]
[1646839332362,0.00398107,2738.0,2737.9,0.99449771]
[1646839332762,0.53543235,2738.3,2737.9,0.99449771]
[1646839332962,0.00398096,2738.1,2738.0,0.96626271]
[1646839333561,0.00398096,2738.1,2737.8,0.96626271]
[1646839333762,0.00398096,2738.1,2737.9,0.028218]
[1646839333968,0.05890022,2738.5,2738.0,0.96626271]
[1646839333969,0.53485779,2738.4,2738.0,0.96626271]
[1646839334162,0.53485779,2738.4,2738.0,1.33076271]
[1646839334163,0.00398088,2738.2,2738.0,1.33076271]
[1646839334414,0.00398088,2738.2,2738.1,2.4881508]
[1646839335008,0.5348568,2738.8,2738.1,2.1236508]
[1646839335208,0.5348568,2738.8,2738.2,0.96626271]
[1646839335209,0.146249,2738.4,2738.2,0.96626271]
[1646839335411,0.00398079,2738.3,2738.2,0.96626271]
[1646839336410,4.5,2739.0,2738.2,0.96626271]
[1646839336411,0.53458355,2738.8,2738.2,0.96626271]
[1646839336613,0.00384635,2738.4,2738.2,0.96626271]
[1646839337212,0.00384635,2738.4,2738.3,0.028205]
[1646839337411,0.00384635,2738.4,2738.3,0.96626271]
[1646839337412,0.05355056,2738.4,2738.3,0.96626271]
[1646839337611,0.05355056,2738.4,2737.7,0.0295453]
[1646839337612,0.58412736,2738.4,2737.7,0.0295453]
[1646839337811,0.53442315,2738.3,2737.8,0.9642035]
[1646839338011,0.05109064,2738.2,2737.8,0.9642035]
[1646839338473,0.05639195,2738.4,2737.8,0.9642035]
[1646839338674,0.53442414,2738.3,2737.8,0.9922715]
[1646839338878,0.05965092,2738.2,2737.9,0.9642035]
[1646839339077,0.00384656,2738.1,2737.9,0.9642035]
[1646839339881,0.06080176,2738.4,2737.9,0.9642035]
[1646839340081,0.534039,2738.3,2738.0,0.9642035]
[1646839340281,0.534039,2738.3,2737.7,1.09458101]
[1646839340282,0.00373694,2738.1,2737.7,1.09458101]
[1646839340588,0.00373694,2738.1,2737.8,0.96322856]
[1646839341185,0.06501189,2738.2,2737.8,0.96322856]
[1646839341488,0.00373698,2738.1,2737.8,0.96322856]
[1646839341686,0.00373698,2738.1,2737.8,0.99132356]
[1646839341940,0.00373698,2738.1,2738.0,0.029168]
[1646839342132,0.00373698,2738.1,2738.0,0.99124056]
[1646839342332,0.53371688,2738.5,2738.0,0.99124056]
[1646839342534,0.06292941,2738.4,2738.1,0.96322856]
[1646839342835,0.06292941,2738.4,2738.1,0.99130056]
[1646839343034,0.3,2738.7,2738.2,0.99143256]
[1646839343035,0.06088954,2738.6,2738.2,0.99143256]
[1646839343236,0.36088954,2738.6,2738.2,0.028204]
[1646839343834,0.00374386,2738.5,2738.2,0.028204]
[1646839344234,0.00374386,2738.5,2738.0,0.028012]
[1646839344438,0.00374386,2738.5,2738.2,1.14621892]
[1646839344636,0.00374386,2738.5,2738.4,0.028459]
[1646839344837,0.3632507,2738.9,2738.4,0.028459]
[1646839344838,0.3,2738.7,2738.4,0.028459]
[1646839345035,0.0632507,2738.9,2738.4,0.028459]
[1646839345236,0.53367069,2738.8,2738.5,0.028211]
[1646839345659,0.83367069,2738.8,2738.5,0.028211]
[1646839345862,0.53367069,2738.7,2738.5,0.028211]
[1646839346260,0.3,2738.7,2738.5,0.028211]
[1646839346461,0.00156541,2738.8,2738.5,0.028211]
[1646839346863,0.06159702,2738.8,2738.5,0.028211]
[1646839347066,0.06159702,2738.8,2738.4,0.028459]
[1646839347067,0.53368496,2738.7,2738.4,0.028459]
[1646839347264,0.83368496,2738.7,2738.4,0.028459]
[1646839347467,0.06401442,2738.8,2738.4,0.028459]
[1646839347665,0.53365641,2738.7,2738.4,0.028459]
[1646839347866,0.83365641,2738.7,2738.2,0.028385]
[1646839348069,0.53365641,2738.6,2738.0,0.028001]
[1646839348267,0.06376956,2738.5,2738.1,0.96199414]
[1646839349517,0.05981533,2738.4,2738.1,0.96199414]
[1646839349920,0.06249944,2738.4,2738.1,0.96199414]
[1646839350318,0.06249944,2738.4,2738.1,0.99005114]
[1646839350516,0.06249944,2738.4,2738.2,0.96199414]
[1646839350716,0.05851632,2738.4,2738.1,0.028057]
[1646839350919,0.05822085,2739.0,2738.2,0.96191161]
[1646839351131,0.00398316,2738.4,2738.1,0.028001]
[1646839351325,0.00398316,2738.4,2738.0,0.028001]
[1646839351326,0.00398316,2738.4,2738.2,0.96189147]
[1646839351523,0.00398316,2738.4,2738.0,0.028001]
[1646839351720,0.00398316,2738.4,2738.1,0.961896]
[1646839351921,0.05109968,2738.4,2738.1,0.961896]
[1646839352121,0.3,2738.5,2738.4,0.01468809]
[1646839352522,0.3,2738.6,2738.4,0.01468809]
[1646839352821,0.04310181,2739.0,2738.4,0.01468809]
[1646839353021,0.53490951,2738.9,2738.4,0.01468809]
[1646839353261,0.04464196,2738.8,2738.4,0.01468809]
[1646839353465,0.00384573,2738.6,2738.4,0.01468809]
[1646839353860,0.53875524,2738.6,2738.4,0.01468809]
[1646839354461,0.53490951,2738.6,2738.4,0.01468809]
[1646839354660,0.53875524,2738.6,2738.4,0.01468809]
[1646839355260,0.53875524,2738.6,2738.4,0.00861266]
[1646839355463,7.62582546,2739.2,2738.7,6.0]
[1646839355464,0.99926306,2739.2,2738.7,6.0]
[1646839355665,2.2868,2739.7,2739.1,0.029168]
[1646839355862,4.63289365,2739.8,2739.6,0.028459]
[1646839355863,3.0,2739.8,2739.6,0.028459]
[1646839356063,0.67684317,2739.9,2739.6,0.7743]
[1646839356263,0.67684317,2740.1,2739.6,0.7743]
[1646839356660,0.67684317,2740.2,2739.6,0.7743]
[1646839356926,0.97684317,2740.2,2739.6,0.7743]
[1646839357719,0.67684317,2740.2,2739.6,0.7743]
[1646839358923,3.91572563,2740.3,2739.0,0.07346804]
[1646839358924,0.67684317,2740.0,2739.0,0.07346804]
[1646839359123,0.67684317,2739.9,2739.0,0.07346804]
[1646839359324,1.39542287,2739.9,2739.0,0.07346804]
[1646839359524,1.39542287,2739.9,2738.6,8.667601]
[1646839359827,1.39542287,2739.9,2739.2,1.0521236]
[1646839360128,1.39542287,2739.9,2739.2,1.16571229]
[1646839360129,0.3,2739.9,2739.2,1.16571229]
[1646839360327,0.3,2740.0,2739.2,1.13757429]
[1646839360526,0.3,2740.0,2739.2,1.16570429]
[1646839360765,0.3,2740.0,2739.2,1.13757429]
[1646839360766,0.00398191,2739.7,2739.2,1.13757429]
[1646839361169,0.00398191,2739.7,2739.2,1.16560629]
[1646839361569,1.21296,2739.9,2739.2,1.16560629]
[1646839361974,0.003982,2739.6,2739.2,1.16560629]
[1646839362775,1.21296,2739.9,2739.2,1.16560629]
[1646839363072,0.00398205,2739.5,2739.2,1.16560629]
[1646839363371,0.00398205,2739.5,2739.4,0.02835]
[1646839363573,0.00398205,2739.5,2739.3,0.10671649]
[1646839363772,0.00398205,2739.5,2739.4,0.029168]
[1646839363971,5.20044317,2740.2,2739.4,0.029168]
[1646839363972,2.81544317,2740.2,2739.4,0.029168]
[1646839364172,2.1386,2740.2,2739.6,0.028383]
[1646839364428,2.1386,2740.2,2739.7,0.028289]
[1646839364429,1.1386,2740.2,2739.7,0.028289]
[1646839364614,1.1386,2740.2,2739.6,0.028043]
[1646839364815,1.1386,2740.2,2739.8,1.21254643]
[1646839365015,0.7223191,2740.3,2739.8,1.21254643]
[1646839365214,1.0223191,2740.3,2739.8,1.21254643]
[1646839365417,0.00386216,2740.0,2739.8,1.21254643]
[1646839365813,0.00386216,2740.0,2739.6,0.084003]
[1646839366214,0.00386216,2740.0,2739.7,0.056918]
[1646839366417,0.34547593,2740.3,2739.5,0.028001]
[1646839366418,0.9129,2740.1,2739.5,0.028001]
[1646839366614,0.9129,2740.1,2739.5,0.028224]
[1646839366615,1.58974317,2740.1,2739.5,0.028224]
[1646839366814,0.00386225,2739.9,2739.6,0.028459]
[1646839367016,0.00386225,2739.9,2739.6,0.028129]
[1646839367717,0.97684317,2740.2,2739.7,0.028459]
[1646839367921,0.00373237,2739.9,2739.8,0.028459]
[1646839368183,0.00373237,2739.9,2739.7,0.028459]
[1646839368581,0.00373237,2739.9,2739.6,0.028001]
[1646839368782,0.3,2740.2,2739.5,0.028459]
[1646839368983,0.3,2740.2,2739.7,0.056918]
[1646839369184,0.00373233,2739.9,2739.8,0.028388]
[1646839369384,0.00373233,2739.9,2739.6,0.028001]
[1646839369583,0.00373233,2739.9,2739.3,1.13590239]
[1646839369783,0.00373233,2739.9,2739.4,0.028382]
[1646839369983,6.50816313,2740.1,2739.4,0.056623]
[1646839370185,6.14366313,2740.1,2739.5,0.028459]
[1646839370384,0.00373237,2739.9,2739.5,0.056782]
[1646839370587,0.00373237,2739.9,2739.5,0.028459]
[1646839371086,0.00373237,2739.9,2739.5,0.056767]
[1646839371285,2.64366313,2740.1,2739.5,0.056767]
[1646839371485,0.00373847,2739.8,2739.6,0.028437]
[1646839371687,0.00373847,2739.8,2739.7,0.056918]
[1646839372313,1.1362,2740.3,2739.6,0.028437]
[1646839372715,0.00373843,2739.9,2739.6,0.028437]
[1646839373013,0.00373843,2739.9,2739.4,0.07964108]
[1646839373613,0.0508649,2740.2,2739.4,0.07964108]
[1646839373813,0.00373851,2739.8,2739.4,0.07964108]
[1646839374913,0.0508649,2740.2,2739.4,0.07964108]
[1646839375215,0.00373814,2739.7,2739.4,0.07964108]
[1646839376161,0.00373814,2739.7,2739.2,0.08548408]
[1646839376361,0.00373818,2739.7,2739.2,0.08548408]
[1646839376967,0.00373818,2739.7,2739.1,1.17135802]
[1646839377266,0.50611535,2739.9,2739.1,1.24286701]
[1646839377466,0.00373826,2739.6,2739.1,1.24286701]
[1646839378467,0.50611535,2739.7,2739.1,1.24286701]
[1646839378667,0.00362698,2739.5,2739.2,0.9893578]
[1646839379067,0.50974233,2739.5,2739.2,0.9893578]
[1646839379267,0.00362698,2739.5,2739.2,0.9893578]
[1646839379514,0.00362698,2739.5,2739.3,0.08998679]
[1646839379714,0.50560611,2739.9,2739.3,0.08998679]
[1646839379916,0.00362698,2739.5,2739.3,0.08998679]
[1646839380516,0.00362698,2739.5,2739.4,0.98894722]
[1646839380920,0.50560611,2739.9,2739.6,0.0888399]
[1646839381117,0.00362694,2739.5,2739.3,0.3]
[1646839381322,0.00362694,2739.5,2738.7,1.1917]
[1646839381517,0.00362694,2739.5,2738.8,0.98917507]
[1646839381715,0.00362694,2739.5,2738.9,0.06878049]
[1646839381919,0.00362694,2739.5,2739.0,0.98917507]
[1646839382123,0.50560611,2739.5,2739.3,0.94687577]
[1646839382324,0.146206,2739.8,2739.4,1.05896102]
[1646839382522,0.50549958,2739.7,2739.5,0.07563301]
[1646839382723,0.028001,2740.0,2738.7,0.08572599]
[1646839382724,0.50549958,2739.6,2738.7,0.08572599]
[1646839382923,0.029168,2739.4,2738.8,0.98923662]
[1646839383165,0.50549958,2739.3,2738.9,1.06149243]
[1646839383367,0.50549958,2739.3,2738.6,0.0897672]
[1646839383567,0.50706065,2739.3,2738.5,0.13819997]
[1646839383765,0.50706065,2739.3,2738.8,1.03303548]
[1646839383968,0.50706065,2739.3,2739.0,0.08615071]
[1646839383969,0.00156107,2739.3,2739.0,0.08615071]
[1646839384165,0.00156107,2739.3,2739.1,0.98965691]
[1646839384365,0.50559709,2739.9,2739.2,0.98965691]
[1646839384565,0.50559709,2739.9,2739.3,0.98965691]
[1646839384764,0.50559709,2739.9,2739.3,0.08254522]
[1646839384964,0.50559709,2739.9,2739.4,0.9137502]
[1646839385566,0.50559709,2739.9,2739.4,1.00098916]
[1646839385766,0.50559709,2739.9,2739.5,0.07884976]
[1646839385968,0.00398284,2739.8,2739.5,0.07884976]
[1646839386670,0.00398284,2739.8,2739.6,0.98975168]
[1646839386929,2.942401,2740.6,2739.7,1.05963142]
[1646839387122,2.942401,2740.6,2740.0,1.19640509]
[1646839387123,0.50575065,2740.5,2740.0,1.19640509]
[1646839387422,0.50575065,2740.5,2740.2,0.08730879]
[1646839387619,0.67684317,2741.0,2740.2,0.08730879]
[1646839387821,0.50575065,2741.1,2740.2,0.08730879]
[1646839387822,0.50575065,2740.9,2740.2,0.08730879]
[1646839388021,4.70626004,2741.2,2740.2,0.08730879]
[1646839388022,0.50575065,2740.8,2740.2,0.08730879]
[1646839388220,0.50575065,2740.7,2740.2,0.08122679]
[1646839388420,0.00398222,2740.5,2740.2,0.08122679]
[1646839389025,0.00398222,2740.5,2739.7,0.08126548]
[1646839389221,0.00398222,2740.5,2739.8,0.9858837]
[1646839389421,0.00398222,2740.5,2739.9,0.0819304]
[1646839389620,0.80575065,2740.7,2739.9,0.0819304]
[1646839389621,0.50575065,2740.6,2739.9,0.0819304]
[1646839389822,0.00375786,2740.5,2739.8,1.15877079]
[1646839390021,0.00375786,2740.5,2739.9,0.07987889]
[1646839390522,0.50575065,2740.6,2739.9,0.07987889]
[1646839390765,0.00362358,2740.3,2739.9,0.07987889]
[1646839391372,4.00937423,2740.3,2739.6,1.1616]
[1646839391566,0.50575065,2740.2,2739.7,0.98580972]
[1646839391766,0.50575065,2740.2,2739.4,1.82498]
[1646839391767,0.50575065,2740.1,2739.4,1.82498]
[1646839391968,0.50575065,2740.1,2739.5,0.98597834]
[1646839392168,0.50575065,2740.0,2739.5,0.98597834]
[1646839392370,0.00362367,2740.2,2739.7,0.91259]
[1646839392570,0.00362367,2740.2,2739.9,0.87570416]
[1646839392968,0.5090779,2740.5,2739.9,0.87570416]
[1646839393270,0.00384815,2740.1,2739.9,0.87570416]
[1646839393468,0.00384815,2740.1,2739.9,1.78825416]
[1646839393669,0.5090779,2740.4,2740.1,3.50123178]
[1646839393874,0.04169594,2741.1,2740.2,3.58267906]
[1646839393875,0.146163,2740.8,2740.2,3.58267906]
[1646839394068,0.146163,2740.8,2740.1,0.00123178]
[1646839394069,0.50906863,2740.7,2740.1,0.00123178]
[1646839394271,0.50906863,2740.7,2740.1,0.98638223]
[1646839394522,0.50906863,2740.6,2740.2,0.07901312]
[1646839394723,0.04782374,2741.0,2740.1,0.00123178]
[1646839394724,0.50906863,2740.5,2740.1,0.00123178]
[1646839394923,0.50906863,2740.4,2740.1,0.00123178]
[1646839395124,0.97684317,2740.9,2740.1,0.00123178]
[1646839395125,0.50906863,2740.3,2740.1,0.00123178]
[1646839395324,3.10234317,2740.9,2740.1,0.00123178]
[1646839395524,0.50929756,2740.8,2740.1,1.82608178]
[1646839395925,0.50929756,2740.8,2740.1,2.12608178]